Workbook

Sheet Sheet1
B1: Intersection of Curves
B2: in Polar Coordinates
B4: This graphing utility lets you locate the
C5: the points of intersection
B6: of any two polar coordinate curves
C7: r = f(Q) and r = g(Q)
B8: on any interval from Q = a to Q = b.
A10: Enter the first function in terms of Q: r = f(Q) = | F10: (sin(Q))^2+(cos(Q))^4
A13: Enter the second function in terms of Q: r = g(Q) = | F13: sin(2*Q)
A15: Now enter the interval for Q (in radians):
B16: Starting angle a = | D16: -3.14
B17: Ending angle b = | D17: 3.14
A23: Click each item below for suggestions and investigations | I23: The graphs of the polar functions r = | N23: =F10 -> (sin(Q))^2+(cos(Q))^4
B24: Item 1 | L24: and r = | N24: =F13 -> sin(2*Q)
B25: Item 2
B26: Item 3 | I26: Now trace along the first polar curve:
I27: Q = | J27: =Sheet1!D16+K27*Sheet2!B12 -> 0.171840796 | K27: 106
I28: r = | J28: =LOOKUP(J27,Sheet2!C3:C204,Sheet2!D3:D204) -> 0.9716152204
A30: To access/download all the DIGMath Apps for Calculus | I30: Now trace along the second polar curve:
A31: Click this link: | C31: DIGMath for Calculus | I31: Q = | J31: =Sheet1!D16+K31*Sheet2!B12 -> -0.7654726368 | K31: 76
I32: r = | J32: =LOOKUP(J31,Sheet2!C3:C204,Sheet2!E3:E204) -> -0.9992060519
A33: Created by: Sheldon P. Gordon
A34: Farmingdale State College | I34: Be sure that both the Q and the r coordinates are the same
A35: Development of this module was supported by the | J35: for a true point of intersection in polar coordinates.
A36: NSF's Division of Undergraduate Education
A37: under grants DUE-0310123 and DUE-0442160.

Sheet Sheet2
C1: Q | D1: r = f(Q) | E1: r = g(Q) | F1: x1 | G1: y1 | H1: x2 | I1: y2 | J1: Tracing point
C3: =Sheet1!D16 -> -3.14 | D3: =(SIN(Q))^2+(COS(Q))^4 -> 0.9999974635 | E3: =SIN(2*Q) -> 0.003185301793 | F3: =D3*COS($C3) -> -0.9999961952 | G3: =D3*SIN($C3) -> -0.001592648877 | H3: =E3*COS($C3) -> -0.003185297753 | I3: =E3*SIN($C3) -> -5.073080191e-06 | J3: 0 | K3: 0
C4: =C3+Sheet2!B$12 -> -3.108756219 | D4: 0.9989233178 | E4: 0.06562567251 | F4: =D4*COS(C4) -> -0.9983848309 | G4: =D4*SIN(C4) -> -0.03279518607 | H4: =E4*COS($C4) -> -0.06559029586 | I4: =E4*SIN($C4) -> -0.002154525881 | J4: =LOOKUP(Sheet1!$J$27,Sheet2!C3:C204,F3:F204) -> 0.9573049479 | K4: =LOOKUP(Sheet1!J27,Sheet2!C3:C204,G3:G204) -> 0.166142629
C5: =C4+Sheet2!B$12 -> -3.077512438 | D5: 0.9959161587 | E5: 0.1278098783 | F5: -0.993872106 | G5: -0.06377485526 | H5: -0.1275475569 | I5: -0.008184480611
C6: =C5+Sheet2!B$12 -> -3.046268657 | D6: 0.9910228934 | E6: 0.1894951879 | F6: -0.9865237556 | G6: -0.09432526128 | H6: -0.1886349 | I6: -0.01803609506
C7: =C6+Sheet2!B$12 -> -3.015024876 | D7: 0.9843198493 | E7: 0.2504408172 | F7: -0.9764462607 | G7: -0.1242508178 | H7: -0.2484375375 | I7: -0.0316131757 | J7: Start line:
C8: =C7+Sheet2!B$12 -> -2.983781095 | D8: 0.9759115834 | E8: 0.3104088695 | F8: -0.9637844938 | G8: -0.1533716668 | H8: -0.3065515977 | I8: -0.04878303169 | J8: 0 | K8: 0
C9: =C8+Sheet2!B$12 -> -2.952537313 | D9: 0.965929252 | E9: 0.3691652641 | F9: -0.9487185219 | G9: -0.181528196 | H9: -0.3625875528 | I9: -0.06937765294 | J9: =1.2*D3*COS(C3) -> -1.199995434 | K9: =1.2*D3*SIN(C3) -> -0.001911178652
C10: =C9+Sheet2!B$12 -> -2.921293532 | D10: 0.9545285639 | E10: 0.4264806497 | F10: -0.9314596402 | G10: -0.2085850374 | H10: -0.4161735202 | I10: -0.09319520195
C11: =C10+Sheet2!B$12 -> -2.890049751 | D11: 0.9418873524 | E11: 0.4821313001 | F11: -0.9122457321 | G11: -0.2344344447 | H11: -0.4669584104 | I11: -0.1200018063
A12: delta Q = | B12: =(Sheet1!D17-Sheet1!D16)/201 -> 0.03124378109 | C12: =C11+Sheet2!B$12 -> -2.85880597 | D12: 0.928202801 | E12: 0.5358999871 | F12: -0.8913360634 | G12: -0.2589989609 | H12: -0.5146148928 | I12: -0.1495336361 | J12: End line
C13: =C12+Sheet2!B$12 -> -2.827562189 | D13: 0.9136883676 | E13: 0.5875768287 | F13: -0.869005635 | G13: -0.2822333069 | H13: -0.5588421536 | I13: -0.1814992477 | J13: 0 | K13: 0
C14: =C13+Sheet2!B$12 -> -2.796318408 | D14: 0.8985704552 | E14: 0.6369601081 | F14: -0.8455392245 | G14: -0.3041254391 | H14: -0.5993684221 | I14: -0.2155821744 | J14: =1.2*D204*COS(C204) -> -1.199995434 | K14: =1.2*D204*SIN(C204) -> 0.001911178652
C15: =C14+Sheet2!B$12 -> -2.765074627 | D15: 0.8830848798 | E15: 0.6838570616 | F15: -0.8212252595 | G15: -0.3246967479 | H15: -0.6359532427 | I15: -0.2514437388
C16: =C15+Sheet2!B$12 -> -2.733830846 | D16: 0.8674731928 | E16: 0.7280846302 | F16: -0.7963496636 | G16: -0.344001386 | H16: -0.6683894732 | I16: -0.2887260655
C17: =C16+Sheet2!B$12 -> -2.702587065 | D17: 0.8519789124 | E17: 0.7694701751 | F17: -0.7711898201 | G17: -0.3621247417 | H17: -0.6965049924 | I17: -0.3270552643 | J17: Second Tracing Point
C18: =C17+Sheet2!B$12 -> -2.671343284 | D18: 0.8368437256 | E18: 0.8078521508 | F18: -0.7460087947 | G18: -0.3791810903 | H18: -0.7201641011 | I18: -0.3660447584
C19: =C18+Sheet2!B$12 -> -2.640099502 | D19: 0.822303718 | E19: 0.8430807363 | F19: -0.7210499493 | G19: -0.3953104797 | H19: -0.7392686045 | I19: -0.4052987272 | J19: 0 | K19: 0
C20: =C19+Sheet2!B$12 -> -2.608855721 | D20: 0.8085856915 | E20: 0.8750184192 | F20: -0.6965320725 | G20: -0.4106749231 | H20: -0.7537585681 | I20: -0.4444156331 | J20: =LOOKUP(Sheet1!$J$31,Sheet2!C3:C2040,H3:H204) -> -0.7204824782 | K20: =LOOKUP(Sheet1!J31,Sheet2!C3:C204,I3:I204) -> 0.692327764
C21: =C20+Sheet2!B$12 -> -2.57761194 | D21: 0.7959036261 | E21: 0.9035405334 | F21: -0.6726451386 | G21: -0.4254539923 | H21: -0.7636127382 | I21: -0.4829918027
C22: =C21+Sheet2!B$12 -> -2.546368159 | D22: 0.7844553427 | E22: 0.9285357448 | F22: -0.6495467892 | G22: -0.4398399178 | H22: -0.7688486251 | I22: -0.5206250291
C23: =C22+Sheet2!B$12 -> -2.515124378 | D23: 0.7744194167 | E23: 0.9499064865 | F23: -0.627359618 | G23: -0.4540323147 | H23: -0.769522248 | I23: -0.5569181654
C24: =C23+Sheet2!B$12 -> -2.483880597 | D24: 0.7659523933 | E24: 0.9675693395 | F24: -0.6061693159 | G24: -0.4682326658 | H24: -0.7657275435 | I24: -0.5914826758
C25: =C24+Sheet2!B$12 -> -2.452636816 | D25: 0.759186345 | E25: 0.9814553581 | F25: -0.5860237158 | G25: -0.4826386962 | H25: -0.7575954435 | I25: -0.6239421157
C26: =C25+Sheet2!B$12 -> -2.421393035 | D26: 0.7542268118 | E26: 0.9915103392 | F26: -0.5669327514 | G26: -0.4974387792 | H26: -0.7452926306 | I26: -0.6539355072
C27: =C26+Sheet2!B$12 -> -2.390149254 | D27: 0.7511511547 | E27: 0.9976950341 | F27: -0.5488693259 | G27: -0.5128065135 | H27: -0.7290199814 | I27: -0.6811205824
C28: =C27+Sheet2!B$12 -> -2.358905473 | D28: 0.7500073494 | E28: 0.9999853012 | F28: -0.5317710617 | G28: -0.528895606 | H28: -0.7090107127 | I28: -0.7051768656
C29: =C28+Sheet2!B$12 -> -2.327661692 | D29: 0.7508132373 | E29: 0.9983722006 | F29: -0.5155428818 | G29: -0.5458351896 | H29: -0.6855282458 | I29: -0.7258085665
C30: =C29+Sheet2!B$12 -> -2.29641791 | D30: 0.7535562478 | E30: 0.992862029 | F30: -0.5000603552 | G30: -0.5637256955 | H30: -0.6588638079 | I30: -0.7427472593
C31: =C30+Sheet2!B$12 -> -2.265174129 | D31: 0.7581935944 | E31: 0.9834762949 | F31: -0.4851737179 | G31: -0.5826353834 | H31: -0.6293337928 | I31: -0.755754325
C32: =C31+Sheet2!B$12 -> -2.233930348 | D32: 0.7646529413 | E32: 0.9702516348 | F32: -0.4707124667 | G32: -0.6025976222 | H32: -0.5972769026 | I32: -0.7646231336
C33: =C32+Sheet2!B$12 -> -2.202686567 | D33: 0.7728335328 | E33: 0.9532396701 | F33: -0.4564904103 | G33: -0.6236089919 | H33: -0.5630510966 | I33: -0.7691809483
C34: =C33+Sheet2!B$12 -> -2.171442786 | D34: 0.7826077642 | E34: 0.9325068059 | F34: -0.4423110485 | G34: -0.6456282592 | H34: -0.5270303744 | I34: -0.7692905351
C35: =C34+Sheet2!B$12 -> -2.140199005 | D35: 0.7938231726 | E35: 0.9081339712 | F35: -0.4279731461 | G35: -0.6685762601 | H35: -0.4896014203 | I35: -0.764851462
C36: =C35+Sheet2!B$12 -> -2.108955224 | D36: 0.8063048147 | E36: 0.8802163037 | F36: -0.4132763635 | G36: -0.6923366967 | H36: -0.45116014 | I36: -0.7558010779
C37: =C36+Sheet2!B$12 -> -2.077711443 | D37: 0.8198579961 | E37: 0.8488627778 | F37: -0.398026802 | G37: -0.7167578382 | H37: -0.4121081192 | I37: -0.742115162
C38: =C37+Sheet2!B$12 -> -2.046467662 | D38: 0.8342713081 | E38: 0.8141957797 | F38: -0.3820423296 | G38: -0.7416550909 | H38: -0.3728490353 | I38: -0.7238082374
C39: =C38+Sheet2!B$12 -> -2.015223881 | D39: 0.8493199251 | E39: 0.7763506294 | F39: -0.3651575545 | G39: -0.7668143814 | H39: -0.3337850543 | I39: -0.700933547
C40: =C39+Sheet2!B$12 -> -1.9839801 | D40: 0.8647691118 | E40: 0.7354750526 | F40: -0.3472283262 | G40: -0.7919962791 | H40: -0.2953132437 | I40: -0.6735826906
C41: =C40+Sheet2!B$12 -> -1.952736318 | D41: 0.8803778846 | E41: 0.691728604 | F41: -0.3281356529 | G41: -0.8169407647 | H41: -0.2578220343 | I41: -0.6418849276
C42: =C41+Sheet2!B$12 -> -1.921492537 | D42: 0.8959027707 | E42: 0.6452820447 | F42: -0.3077889427 | G42: -0.8413725342 | H42: -0.2216877599 | I42: -0.6060061504
C43: =C42+Sheet2!B$12 -> -1.890248756 | D43: 0.9111016057 | E43: 0.5963166753 | F43: -0.2861284892 | G43: -0.8650067188 | H43: -0.187271308 | I43: -0.5661475378
C44: =C43+Sheet2!B$12 -> -1.859004975 | D44: 0.9257373111 | E44: 0.5450236285 | F44: -0.2631271441 | G44: -0.8875548857 | H44: -0.1549149085 | I44: -0.5225438994
C45: =C44+Sheet2!B$12 -> -1.827761194 | D45: 0.9395815924 | E45: 0.4916031228 | F45: -0.2387911386 | G45: -0.9087311819 | H45: -0.1249390903 | I45: -0.4754617272
C46: =C45+Sheet2!B$12 -> -1.796517413 | D46: 0.9524185001 | E46: 0.4362636812 | F46: -0.2131600365 | G46: -0.928258476 | H46: -0.09763983184 | I46: -0.4251969694
C47: =C46+Sheet2!B$12 -> -1.765273632 | D47: 0.9640477982 | E47: 0.379221317 | F47: -0.1863058231 | G47: -0.9458743561 | H47: -0.07328593015 | I47: -0.3720725463
C48: =C47+Sheet2!B$12 -> -1.734029851 | D48: 0.9742880874 | E48: 0.3206986908 | F48: -0.1583311588 | G48: -0.9613368408 | H48: -0.05211661314 | I48: -0.3164356315
C49: =C48+Sheet2!B$12 -> -1.70278607 | D49: 0.9829796351 | E49: 0.2609242413 | F49: -0.1293668415 | G49: -0.9744296708 | H49: -0.03433941432 | I49: -0.2586547202
C50: =C49+Sheet2!B$12 -> -1.671542289 | D50: 0.9899868663 | E50: 0.2001312935 | F50: -0.0995685467 | G50: -0.9849670553 | H50: -0.0201283297 | I50: -0.1991165111
C51: =C50+Sheet2!B$12 -> -1.640298507 | D51: 0.9952004792 | E51: 0.1385571483 | F51: -0.06911292985 | G51: -0.9927977622 | H51: -0.00962227277 | I51: -0.1382226292
C52: =C51+Sheet2!B$12 -> -1.609054726 | D52: 0.9985391492 | E52: 0.07644215565 | F52: -0.03819319091 | G52: -0.9978084549 | H52: -0.00292384114 | I52: -0.07638621808
C53: =C52+Sheet2!B$12 -> -1.577810945 | D53: 0.9999507984 | E53: 0.01402877676 | F53: -0.007014215825 | G53: -0.9999261972 | H53: -9.840570967e-05 | I53: -0.01402843162
C54: =C53+Sheet2!B$12 -> -1.546567164 | D54: 0.999413407 | E54: -0.04843936241 | F54: 0.02421258079 | G54: -0.9991200674 | H54: -0.00117353036 | I54: 0.04842514489
C55: =C54+Sheet2!B$12 -> -1.515323383 | D55: 0.9969353577 | E55: -0.1107184222 | F55: 0.05527457988 | G55: -0.9954018426 | H55: -0.006138727272 | I55: 0.1105481118
C56: =C55+Sheet2!B$12 -> -1.484079602 | D56: 0.9925553042 | E56: -0.1725653008 | F56: 0.08596331289 | G56: -0.9888257383 | H56: -0.01494555002 | I56: 0.1719168799
C57: =C56+Sheet2!B$12 -> -1.452835821 | D57: 0.9863415686 | E57: -0.2337385838 | F57: 0.1160797107 | G57: -0.979487208 | H57: -0.02750802365 | I57: 0.2321142697
C58: =C57+Sheet2!B$12 -> -1.42159204 | D58: 0.9783910756 | E58: -0.2939994857 | F58: 0.1454391124 | G58: -0.9675208325 | H58: -0.04370340788 | I58: 0.2907330558
C59: =C58+Sheet2!B$12 -> -1.390348259 | D59: 0.9688278407 | E59: -0.3531127827 | F59: 0.173875905 | G59: -0.9530973479 | H59: -0.06337328685 | I59: 0.3473794234
C60: =C59+Sheet2!B$12 -> -1.359104478 | D60: 0.9578010356 | E60: -0.4108477304 | F60: 0.2012476764 | G60: -0.9364198826 | H60: -0.08632497569 | I60: 0.4016763077
C61: =C60+Sheet2!B$12 -> -1.327860697 | D61: 0.9454826616 | E61: -0.4669789648 | F61: 0.2274387732 | G61: -0.917719493 | H61: -0.1123332317 | I61: 0.4532665867
C62: =C61+Sheet2!B$12 -> -1.296616915 | D62: 0.9320648664 | E62: -0.5212873818 | F62: 0.2523631713 | G62: -0.8972501017 | H62: -0.1411422548 | I62: 0.5018161001
C63: =C62+Sheet2!B$12 -> -1.265373134 | D63: 0.917756947 | E63: -0.5735609926 | F63: 0.2759665855 | G63: -0.8752829585 | H63: -0.1724679603 | I63: 0.5470164667
C64: =C63+Sheet2!B$12 -> -1.234129353 | D64: 0.9027820848 | E64: -0.623595751 | F64: 0.2982277597 | G64: -0.8521007546 | H64: -0.2060005032 | I64: 0.5885876768
C65: =C64+Sheet2!B$12 -> -1.202885572 | D65: 0.8873738649 | E65: -0.6711963502 | F65: 0.3191589038 | G65: -0.8279915278 | H65: -0.2414070324 | I65: 0.6262804365
C66: =C65+Sheet2!B$12 -> -1.171641791 | D66: 0.8717726317 | E66: -0.7161769847 | F66: 0.3388052614 | G66: -0.8032425014 | H66: -0.2783346503 | I66: 0.6598782432
C67: =C66+Sheet2!B$12 -> -1.14039801 | D67: =(SIN(Q))^2+(COS(Q))^4 -> 0.8562217404 | E67: =SIN(2*Q) -> -0.758362076 | F67: 0.3572438162 | G67: -0.7781340017 | H67: -0.3164135519 | I67: 0.6891991748
C68: =C67+Sheet2!B$12 -> -1.109154229 | D68: 0.8409637612 | E68: -0.7975869579 | F68: =D68*COS(C68) -> 0.374581165 | G68: =D68*SIN(C68) -> -0.752933595 | H68: =E68*COS($C68) -> -0.3552603164 | I68: =E68*SIN($C68) -> 0.7140973764
C69: =C68+Sheet2!B$12 -> -1.077910448 | D69: 0.8262366949 | E69: -0.8336985188 | F69: 0.3909506076 | G69: -0.7278905814 | H69: -0.3944813205 | I69: 0.7344642319
C70: =C69+Sheet2!B$12 -> -1.046666667 | D70: 0.8122702613 | E70: -0.8665558001 | F70: 0.4065085224 | G70: -0.7032309711 | H70: -0.4336762462 | I70: 0.7502292104
C71: =C70+Sheet2!B$12 -> -1.015422886 | D71: 0.7992823153 | E71: -0.8960305457 | F71: 0.4214301141 | G71: -0.6791530596 | H71: -0.4724416491 | I71: 0.7613603792
C72: =C71+Sheet2!B$12 -> -0.9841791045 | D72: 0.7874754488 | E72: -0.9220077033 | F72: 0.4359046387 | G72: -0.6558237022 | H72: -0.5103745589 | I72: 0.7678645809
C73: =C72+Sheet2!B$12 -> -0.9529353234 | D73: 0.7770338308 | E73: -0.9443858729 | F73: 0.4501302196 | G73: -0.6333753702 | H73: -0.5470760777 | I73: 0.7697872707
C74: =C73+Sheet2!B$12 -> -0.9216915423 | D74: 0.7681203345 | E74: -0.9630777031 | F74: 0.4643083845 | G74: -0.6119040548 | H74: -0.5821549468 | I74: 0.7672120176
C75: =C74+Sheet2!B$12 -> -0.8904477612 | D75: 0.7608739967 | E75: -0.9780102316 | F75: 0.4786384558 | G75: -0.5914680613 | H75: -0.6152310488 | I75: 0.7602596726
C76: =C75+Sheet2!B$12 -> -0.8592039801 | D76: 0.7554078493 | E76: -0.9891251705 | F76: 0.4933119341 | G76: -0.5720877157 | H76: -0.6459388149 | I76: 0.7490872115
C77: =C76+Sheet2!B$12 -> -0.827960199 | D77: 0.7518071556 | E77: -0.9963791335 | F77: 0.5085070143 | G77: -0.5537459848 | H77: -0.673930508 | I77: 0.7338862637
C78: =C77+Sheet2!B$12 -> -0.7967164179 | D78: 0.750128081 | E78: -0.9997438052 | F78: 0.5243833712 | G78: -0.5363899868 | H78: -0.6988793517 | I78: 0.7148813383
C79: =C78+Sheet2!B$12 -> -0.7654726368 | D79: 0.7503968165 | E79: -0.9992060519 | F79: 0.5410773453 | G79: -0.5199333502 | H79: -0.7204824782 | I79: 0.692327764
C80: =C79+Sheet2!B$12 -> -0.7342288557 | D80: 0.7526091702 | E80: -0.9947679726 | F80: 0.5586976505 | G80: -0.5042593562 | H80: -0.738463669 | I80: 0.6665093615
C81: =C80+Sheet2!B$12 -> -0.7029850746 | D81: 0.7567306327 | E81: -0.9864468912 | F81: 0.5773217142 | G81: -0.4892247836 | H81: -0.7525758645 | I81: 0.6377358679
C82: =C81+Sheet2!B$12 -> -0.6717412935 | D82: 0.7626969157 | E82: -0.9742752882 | F82: 0.5969927425 | G82: -0.4746643557 | H82: -0.76260342 | I82: 0.6063401365
C83: =C82+Sheet2!B$12 -> -0.6404975124 | D83: 0.7704149542 | E83: -0.9583006748 | F83: 0.6177175904 | G83: -0.4603956778 | H83: -0.7683640881 | I83: 0.572675136
C84: =C83+Sheet2!B$12 -> -0.6092537313 | D84: 0.7797643587 | E84: -0.9385854064 | F84: 0.6394654924 | G84: -0.4462245389 | H84: -0.7697107112 | I84: 0.5371107765
C85: =C84+Sheet2!B$12 -> -0.5780099502 | D85: 0.7905992929 | E85: -0.9152064403 | F85: 0.6621676931 | G85: -0.4319504465 | H85: -0.7665326072 | I85: 0.5000305895
C86: =C85+Sheet2!B$12 -> -0.5467661692 | D86: 0.8027507485 | E86: -0.8882550344 | F86: 0.6857179926 | G86: -0.4173722545 | H86: -0.7587566381 | I86: 0.461828291
C87: =C86+Sheet2!B$12 -> -0.5155223881 | D87: 0.8160291813 | E87: -0.8578363916 | F87: 0.7099742011 | G87: -0.4022937465 | H87: -0.7463479503 | I87: 0.4229042586
C88: =C87+Sheet2!B$12 -> -0.484278607 | D88: 0.8302274683 | E88: -0.8240692488 | F88: 0.7347604738 | G88: -0.3865290355 | H88: -0.7293103815 | I88: 0.383661953
C89: =C88+Sheet2!B$12 -> -0.4530348259 | D89: 0.845124138 | E89: -0.7870854134 | F89: 0.7598704769 | G89: -0.3699076466 | H89: -0.7076865297 | I89: 0.3445043158
C90: =C89+Sheet2!B$12 -> -0.4217910448 | D90: 0.8604868253 | E90: -0.7470292491 | F90: 0.7850713152 | G90: -0.3522791599 | H90: -0.6815574833 | I90: 0.3058301749
C91: =C90+Sheet2!B$12 -> -0.3905472637 | D91: 0.8760758957 | E91: -0.7040571121 | F91: 0.8101081325 | G91: -0.333517299 | H91: -0.6510422157 | I91: 0.2680306895
C92: =C91+Sheet2!B$12 -> -0.3593034826 | D92: 0.8916481839 | E92: -0.658336741 | F92: 0.8347092801 | G92: -0.3135233669 | H92: -0.6162966482 | I92: 0.2314858655
C93: =C92+Sheet2!B$12 -> -0.3280597015 | D93: 0.9069607859 | E93: -0.6100466017 | F93: 0.8585919346 | G93: -0.2922289462 | H93: -0.5775123909 | I93: 0.1965611726
C94: =C93+Sheet2!B$12 -> -0.2968159204 | D94: 0.9217748488 | E94: -0.5593751913 | F94: 0.8814680356 | G94: -0.2695978008 | H94: -0.5349151711 | I94: 0.1636042919
C95: =C94+Sheet2!B$12 -> -0.2655721393 | D95: 0.935859296 | E95: -0.5065203017 | F95: 0.9030504034 | G95: -0.2456269341 | H95: -0.4887629634 | I95: 0.1329420238
C96: =C95+Sheet2!B$12 -> -0.2343283582 | D96: 0.9489944316 | E96: -0.4516882481 | F96: 0.9230588969 | G96: -0.2203467815 | H96: -0.4393438382 | I96: 0.1048773822
C97: =C96+Sheet2!B$12 -> -0.2030845771 | D97: 0.9609753678 | E97: -0.3950930633 | F97: 0.9412264644 | G97: -0.1938205363 | H97: -0.3869735474 | I97: 0.07968690143
C98: =C97+Sheet2!B$12 -> -0.171840796 | D98: 0.9716152204 | E98: -0.3369556623 | F98: 0.9573049479 | G98: -0.166142629 | H98: -0.3319928671 | I98: 0.05761817891
C99: =C98+Sheet2!B$12 -> -0.1405970149 | D99: 0.980748024 | E99: -0.2775029802 | F99: 0.9710705031 | G99: -0.137436402 | H99: -0.2747647224 | I99: 0.03888767574
C100: =C99+Sheet2!B$12 -> -0.1093532338 | D100: 0.9882313209 | E100: -0.2169670859 | F100: 0.9823285075 | G100: -0.107851041 | H100: -0.2156711179 | I100: 0.02367879421
C101: =C100+Sheet2!B$12 -> -0.07810945274 | D101: 0.9939483832 | E101: -0.155584277 | F101: 0.9909178419 | G101: -0.07755784357 | H101: -0.1551099017 | I101: 0.01214024915
C102: =C101+Sheet2!B$12 -> -0.04686567164 | D102: 0.9978100335 | E102: -0.09359415643 | F102: 0.9967144434 | G102: -0.04674592095 | H102: -0.09349139055 | I102: 0.004384747488
C103: =C102+Sheet2!B$12 -> -0.01562189055 | D103: 0.9997560359 | E103: -0.03123869812 | F103: 0.9996340465 | G103: -0.01561744413 | H103: -0.03123488639 | I103: 0.0004879876739
C104: =C103+Sheet2!B$12 -> 0.01562189055 | D104: 0.9997560359 | E104: 0.03123869812 | F104: 0.9996340465 | G104: 0.01561744413 | H104: 0.03123488639 | I104: 0.0004879876739
C105: =C104+Sheet2!B$12 -> 0.04686567164 | D105: 0.9978100335 | E105: 0.09359415643 | F105: =D105*COS(C105) -> 0.9967144434 | G105: =D105*SIN(C105) -> 0.04674592095 | H105: 0.09349139055 | I105: 0.004384747488
C106: =C105+Sheet2!B$12 -> 0.07810945274 | D106: 0.9939483832 | E106: 0.155584277 | F106: 0.9909178419 | G106: 0.07755784357 | H106: 0.1551099017 | I106: 0.01214024915
C107: =C106+Sheet2!B$12 -> 0.1093532338 | D107: 0.9882313209 | E107: 0.2169670859 | F107: 0.9823285075 | G107: 0.107851041 | H107: 0.2156711179 | I107: 0.02367879421
C108: =C107+Sheet2!B$12 -> 0.1405970149 | D108: 0.980748024 | E108: 0.2775029802 | F108: 0.9710705031 | G108: 0.137436402 | H108: 0.2747647224 | I108: 0.03888767574
C109: =C108+Sheet2!B$12 -> 0.171840796 | D109: 0.9716152204 | E109: 0.3369556623 | F109: 0.9573049479 | G109: 0.166142629 | H109: 0.3319928671 | I109: 0.05761817891
C110: =C109+Sheet2!B$12 -> 0.2030845771 | D110: 0.9609753678 | E110: 0.3950930633 | F110: 0.9412264644 | G110: 0.1938205363 | H110: 0.3869735474 | I110: 0.07968690143
C111: =C110+Sheet2!B$12 -> 0.2343283582 | D111: 0.9489944316 | E111: 0.4516882481 | F111: 0.9230588969 | G111: 0.2203467815 | H111: 0.4393438382 | I111: 0.1048773822
C112: =C111+Sheet2!B$12 -> 0.2655721393 | D112: 0.935859296 | E112: 0.5065203017 | F112: 0.9030504034 | G112: 0.2456269341 | H112: 0.4887629634 | I112: 0.1329420238
C113: =C112+Sheet2!B$12 -> 0.2968159204 | D113: 0.9217748488 | E113: 0.5593751913 | F113: 0.8814680356 | G113: 0.2695978008 | H113: 0.5349151711 | I113: 0.1636042919
C114: =C113+Sheet2!B$12 -> 0.3280597015 | D114: 0.9069607859 | E114: 0.6100466017 | F114: 0.8585919346 | G114: 0.2922289462 | H114: 0.5775123909 | I114: 0.1965611726
C115: =C114+Sheet2!B$12 -> 0.3593034826 | D115: 0.8916481839 | E115: 0.658336741 | F115: 0.8347092801 | G115: 0.3135233669 | H115: 0.6162966482 | I115: 0.2314858655
C116: =C115+Sheet2!B$12 -> 0.3905472637 | D116: 0.8760758957 | E116: 0.7040571121 | F116: 0.8101081325 | G116: 0.333517299 | H116: 0.6510422157 | I116: 0.2680306895
C117: =C116+Sheet2!B$12 -> 0.4217910448 | D117: 0.8604868253 | E117: 0.7470292491 | F117: 0.7850713152 | G117: 0.3522791599 | H117: 0.6815574833 | I117: 0.3058301749
C118: =C117+Sheet2!B$12 -> 0.4530348259 | D118: 0.845124138 | E118: 0.7870854134 | F118: 0.7598704769 | G118: 0.3699076466 | H118: 0.7076865297 | I118: 0.3445043158
C119: =C118+Sheet2!B$12 -> 0.484278607 | D119: 0.8302274683 | E119: 0.8240692488 | F119: 0.7347604738 | G119: 0.3865290355 | H119: 0.7293103815 | I119: 0.383661953
C120: =C119+Sheet2!B$12 -> 0.5155223881 | D120: 0.8160291813 | E120: 0.8578363916 | F120: 0.7099742011 | G120: 0.4022937465 | H120: 0.7463479503 | I120: 0.4229042586
C121: =C120+Sheet2!B$12 -> 0.5467661692 | D121: 0.8027507485 | E121: 0.8882550344 | F121: 0.6857179926 | G121: 0.4173722545 | H121: 0.7587566381 | I121: 0.461828291
C122: =C121+Sheet2!B$12 -> 0.5780099502 | D122: 0.7905992929 | E122: 0.9152064403 | F122: 0.6621676931 | G122: 0.4319504465 | H122: 0.7665326072 | I122: 0.5000305895
C123: =C122+Sheet2!B$12 -> 0.6092537313 | D123: 0.7797643587 | E123: 0.9385854064 | F123: 0.6394654924 | G123: 0.4462245389 | H123: 0.7697107112 | I123: 0.5371107765
C124: =C123+Sheet2!B$12 -> 0.6404975124 | D124: 0.7704149542 | E124: 0.9583006748 | F124: 0.6177175904 | G124: 0.4603956778 | H124: 0.7683640881 | I124: 0.572675136
C125: =C124+Sheet2!B$12 -> 0.6717412935 | D125: 0.7626969157 | E125: 0.9742752882 | F125: 0.5969927425 | G125: 0.4746643557 | H125: 0.76260342 | I125: 0.6063401365
C126: =C125+Sheet2!B$12 -> 0.7029850746 | D126: 0.7567306327 | E126: 0.9864468912 | F126: 0.5773217142 | G126: 0.4892247836 | H126: 0.7525758645 | I126: 0.6377358679
C127: =C126+Sheet2!B$12 -> 0.7342288557 | D127: 0.7526091702 | E127: 0.9947679726 | F127: 0.5586976505 | G127: 0.5042593562 | H127: 0.738463669 | I127: 0.6665093615
C128: =C127+Sheet2!B$12 -> 0.7654726368 | D128: 0.7503968165 | E128: 0.9992060519 | F128: 0.5410773453 | G128: 0.5199333502 | H128: 0.7204824782 | I128: 0.692327764
C129: =C128+Sheet2!B$12 -> 0.7967164179 | D129: 0.750128081 | E129: 0.9997438052 | F129: 0.5243833712 | G129: 0.5363899868 | H129: 0.6988793517 | I129: 0.7148813383
C130: =C129+Sheet2!B$12 -> 0.827960199 | D130: 0.7518071556 | E130: 0.9963791335 | F130: 0.5085070143 | G130: 0.5537459848 | H130: 0.673930508 | I130: 0.7338862637
C131: =C130+Sheet2!B$12 -> 0.8592039801 | D131: =(SIN(Q))^2+(COS(Q))^4 -> 0.7554078493 | E131: =SIN(2*Q) -> 0.9891251705 | F131: 0.4933119341 | G131: 0.5720877157 | H131: 0.6459388149 | I131: 0.7490872115
C132: =C131+Sheet2!B$12 -> 0.8904477612 | D132: 0.7608739967 | E132: 0.9780102316 | F132: 0.4786384558 | G132: 0.5914680613 | H132: =E132*COS($C132) -> 0.6152310488 | I132: =E132*SIN($C132) -> 0.7602596726
C133: =C132+Sheet2!B$12 -> 0.9216915423 | D133: 0.7681203345 | E133: 0.9630777031 | F133: 0.4643083845 | G133: 0.6119040548 | H133: 0.5821549468 | I133: 0.7672120176
C134: =C133+Sheet2!B$12 -> 0.9529353234 | D134: 0.7770338308 | E134: 0.9443858729 | F134: 0.4501302196 | G134: 0.6333753702 | H134: 0.5470760777 | I134: 0.7697872707
C135: =C134+Sheet2!B$12 -> 0.9841791045 | D135: 0.7874754488 | E135: 0.9220077033 | F135: 0.4359046387 | G135: 0.6558237022 | H135: 0.5103745589 | I135: 0.7678645809
C136: =C135+Sheet2!B$12 -> 1.015422886 | D136: 0.7992823153 | E136: 0.8960305457 | F136: 0.4214301141 | G136: 0.6791530596 | H136: 0.4724416491 | I136: 0.7613603792
C137: =C136+Sheet2!B$12 -> 1.046666667 | D137: 0.8122702613 | E137: 0.8665558001 | F137: 0.4065085224 | G137: 0.7032309711 | H137: 0.4336762462 | I137: 0.7502292104
C138: =C137+Sheet2!B$12 -> 1.077910448 | D138: 0.8262366949 | E138: 0.8336985188 | F138: 0.3909506076 | G138: 0.7278905814 | H138: 0.3944813205 | I138: 0.7344642319
C139: =C138+Sheet2!B$12 -> 1.109154229 | D139: 0.8409637612 | E139: 0.7975869579 | F139: 0.374581165 | G139: 0.752933595 | H139: 0.3552603164 | I139: 0.7140973764
C140: =C139+Sheet2!B$12 -> 1.14039801 | D140: 0.8562217404 | E140: 0.758362076 | F140: 0.3572438162 | G140: 0.7781340017 | H140: 0.3164135519 | I140: 0.6891991748
C141: =C140+Sheet2!B$12 -> 1.171641791 | D141: 0.8717726317 | E141: 0.7161769847 | F141: 0.3388052614 | G141: 0.8032425014 | H141: 0.2783346503 | I141: 0.6598782432
C142: =C141+Sheet2!B$12 -> 1.202885572 | D142: 0.8873738649 | E142: 0.6711963502 | F142: 0.3191589038 | G142: 0.8279915278 | H142: 0.2414070324 | I142: 0.6262804365
C143: =C142+Sheet2!B$12 -> 1.234129353 | D143: 0.9027820848 | E143: 0.623595751 | F143: 0.2982277597 | G143: 0.8521007546 | H143: 0.2060005032 | I143: 0.5885876768
C144: =C143+Sheet2!B$12 -> 1.265373134 | D144: 0.917756947 | E144: 0.5735609926 | F144: 0.2759665855 | G144: 0.8752829585 | H144: 0.1724679603 | I144: 0.5470164667
C145: =C144+Sheet2!B$12 -> 1.296616915 | D145: 0.9320648664 | E145: 0.5212873818 | F145: 0.2523631713 | G145: 0.8972501017 | H145: 0.1411422548 | I145: 0.5018161001
C146: =C145+Sheet2!B$12 -> 1.327860697 | D146: 0.9454826616 | E146: 0.4669789648 | F146: 0.2274387732 | G146: 0.917719493 | H146: 0.1123332317 | I146: 0.4532665867
C147: =C146+Sheet2!B$12 -> 1.359104478 | D147: 0.9578010356 | E147: 0.4108477304 | F147: 0.2012476764 | G147: 0.9364198826 | H147: 0.08632497569 | I147: 0.4016763077
C148: =C147+Sheet2!B$12 -> 1.390348259 | D148: 0.9688278407 | E148: 0.3531127827 | F148: 0.173875905 | G148: 0.9530973479 | H148: 0.06337328685 | I148: 0.3473794234
C149: =C148+Sheet2!B$12 -> 1.42159204 | D149: 0.9783910756 | E149: 0.2939994857 | F149: 0.1454391124 | G149: 0.9675208325 | H149: 0.04370340788 | I149: 0.2907330558
C150: =C149+Sheet2!B$12 -> 1.452835821 | D150: 0.9863415686 | E150: 0.2337385838 | F150: 0.1160797107 | G150: 0.979487208 | H150: 0.02750802365 | I150: 0.2321142697
C151: =C150+Sheet2!B$12 -> 1.484079602 | D151: 0.9925553042 | E151: 0.1725653008 | F151: 0.08596331289 | G151: 0.9888257383 | H151: 0.01494555002 | I151: 0.1719168799
C152: =C151+Sheet2!B$12 -> 1.515323383 | D152: 0.9969353577 | E152: 0.1107184222 | F152: 0.05527457988 | G152: 0.9954018426 | H152: 0.006138727272 | I152: 0.1105481118
C153: =C152+Sheet2!B$12 -> 1.546567164 | D153: 0.999413407 | E153: 0.04843936241 | F153: 0.02421258079 | G153: 0.9991200674 | H153: 0.00117353036 | I153: 0.04842514489
C154: =C153+Sheet2!B$12 -> 1.577810945 | D154: 0.9999507984 | E154: -0.01402877676 | F154: -0.007014215825 | G154: 0.9999261972 | H154: 9.840570967e-05 | I154: -0.01402843162
C155: =C154+Sheet2!B$12 -> 1.609054726 | D155: 0.9985391492 | E155: -0.07644215565 | F155: -0.03819319091 | G155: 0.9978084549 | H155: 0.00292384114 | I155: -0.07638621808
C156: =C155+Sheet2!B$12 -> 1.640298507 | D156: 0.9952004792 | E156: -0.1385571483 | F156: -0.06911292985 | G156: 0.9927977622 | H156: 0.00962227277 | I156: -0.1382226292
C157: =C156+Sheet2!B$12 -> 1.671542289 | D157: 0.9899868663 | E157: -0.2001312935 | F157: -0.0995685467 | G157: 0.9849670553 | H157: 0.0201283297 | I157: -0.1991165111
C158: =C157+Sheet2!B$12 -> 1.70278607 | D158: 0.9829796351 | E158: -0.2609242413 | F158: -0.1293668415 | G158: 0.9744296708 | H158: 0.03433941432 | I158: -0.2586547202
C159: =C158+Sheet2!B$12 -> 1.734029851 | D159: 0.9742880874 | E159: -0.3206986908 | F159: -0.1583311588 | G159: 0.9613368408 | H159: 0.05211661314 | I159: -0.3164356315
C160: =C159+Sheet2!B$12 -> 1.765273632 | D160: 0.9640477982 | E160: -0.379221317 | F160: -0.1863058231 | G160: 0.9458743561 | H160: 0.07328593015 | I160: -0.3720725463
C161: =C160+Sheet2!B$12 -> 1.796517413 | D161: 0.9524185001 | E161: -0.4362636812 | F161: -0.2131600365 | G161: 0.928258476 | H161: 0.09763983184 | I161: -0.4251969694
C162: =C161+Sheet2!B$12 -> 1.827761194 | D162: 0.9395815924 | E162: -0.4916031228 | F162: -0.2387911386 | G162: 0.9087311819 | H162: 0.1249390903 | I162: -0.4754617272
C163: =C162+Sheet2!B$12 -> 1.859004975 | D163: 0.9257373111 | E163: -0.5450236285 | F163: -0.2631271441 | G163: 0.8875548857 | H163: 0.1549149085 | I163: -0.5225438994
C164: =C163+Sheet2!B$12 -> 1.890248756 | D164: 0.9111016057 | E164: -0.5963166753 | F164: -0.2861284892 | G164: 0.8650067188 | H164: 0.187271308 | I164: -0.5661475378
C165: =C164+Sheet2!B$12 -> 1.921492537 | D165: 0.8959027707 | E165: -0.6452820447 | F165: -0.3077889427 | G165: 0.8413725342 | H165: 0.2216877599 | I165: -0.6060061504
C166: =C165+Sheet2!B$12 -> 1.952736318 | D166: 0.8803778846 | E166: -0.691728604 | F166: -0.3281356529 | G166: 0.8169407647 | H166: 0.2578220343 | I166: -0.6418849276
C167: =C166+Sheet2!B$12 -> 1.9839801 | D167: 0.8647691118 | E167: -0.7354750526 | F167: -0.3472283262 | G167: 0.7919962791 | H167: 0.2953132437 | I167: -0.6735826906
C168: =C167+Sheet2!B$12 -> 2.015223881 | D168: 0.8493199251 | E168: -0.7763506294 | F168: -0.3651575545 | G168: 0.7668143814 | H168: 0.3337850543 | I168: -0.700933547
C169: =C168+Sheet2!B$12 -> 2.046467662 | D169: 0.8342713081 | E169: -0.8141957797 | F169: =D169*COS(C169) -> -0.3820423296 | G169: =D169*SIN(C169) -> 0.7416550909 | H169: 0.3728490353 | I169: -0.7238082374
C170: =C169+Sheet2!B$12 -> 2.077711443 | D170: 0.8198579961 | E170: -0.8488627778 | F170: -0.398026802 | G170: 0.7167578382 | H170: 0.4121081192 | I170: -0.742115162
C171: =C170+Sheet2!B$12 -> 2.108955224 | D171: 0.8063048147 | E171: -0.8802163037 | F171: -0.4132763635 | G171: 0.6923366967 | H171: 0.45116014 | I171: -0.7558010779
C172: =C171+Sheet2!B$12 -> 2.140199005 | D172: 0.7938231726 | E172: -0.9081339712 | F172: -0.4279731461 | G172: 0.6685762601 | H172: 0.4896014203 | I172: -0.764851462
C173: =C172+Sheet2!B$12 -> 2.171442786 | D173: 0.7826077642 | E173: -0.9325068059 | F173: -0.4423110485 | G173: 0.6456282592 | H173: 0.5270303744 | I173: -0.7692905351
C174: =C173+Sheet2!B$12 -> 2.202686567 | D174: 0.7728335328 | E174: -0.9532396701 | F174: -0.4564904103 | G174: 0.6236089919 | H174: 0.5630510966 | I174: -0.7691809483
C175: =C174+Sheet2!B$12 -> 2.233930348 | D175: 0.7646529413 | E175: -0.9702516348 | F175: -0.4707124667 | G175: 0.6025976222 | H175: 0.5972769026 | I175: -0.7646231336
C176: =C175+Sheet2!B$12 -> 2.265174129 | D176: 0.7581935944 | E176: -0.9834762949 | F176: -0.4851737179 | G176: 0.5826353834 | H176: 0.6293337928 | I176: -0.755754325
C177: =C176+Sheet2!B$12 -> 2.29641791 | D177: 0.7535562478 | E177: -0.992862029 | F177: -0.5000603552 | G177: 0.5637256955 | H177: 0.6588638079 | I177: -0.7427472593
C178: =C177+Sheet2!B$12 -> 2.327661692 | D178: 0.7508132373 | E178: -0.9983722006 | F178: -0.5155428818 | G178: 0.5458351896 | H178: 0.6855282458 | I178: -0.7258085665
C179: =C178+Sheet2!B$12 -> 2.358905473 | D179: 0.7500073494 | E179: -0.9999853012 | F179: -0.5317710617 | G179: 0.528895606 | H179: 0.7090107127 | I179: -0.7051768656
C180: =C179+Sheet2!B$12 -> 2.390149254 | D180: 0.7511511547 | E180: -0.9976950341 | F180: -0.5488693259 | G180: 0.5128065135 | H180: 0.7290199814 | I180: -0.6811205824
C181: =C180+Sheet2!B$12 -> 2.421393035 | D181: 0.7542268118 | E181: -0.9915103392 | F181: -0.5669327514 | G181: 0.4974387792 | H181: 0.7452926306 | I181: -0.6539355072
C182: =C181+Sheet2!B$12 -> 2.452636816 | D182: 0.759186345 | E182: -0.9814553581 | F182: -0.5860237158 | G182: 0.4826386962 | H182: 0.7575954435 | I182: -0.6239421157
C183: =C182+Sheet2!B$12 -> 2.483880597 | D183: 0.7659523933 | E183: -0.9675693395 | F183: -0.6061693159 | G183: 0.4682326658 | H183: 0.7657275435 | I183: -0.5914826758
C184: =C183+Sheet2!B$12 -> 2.515124378 | D184: 0.7744194167 | E184: -0.9499064865 | F184: -0.627359618 | G184: 0.4540323147 | H184: 0.769522248 | I184: -0.5569181654
C185: =C184+Sheet2!B$12 -> 2.546368159 | D185: 0.7844553427 | E185: -0.9285357448 | F185: -0.6495467892 | G185: 0.4398399178 | H185: 0.7688486251 | I185: -0.5206250291
C186: =C185+Sheet2!B$12 -> 2.57761194 | D186: 0.7959036261 | E186: -0.9035405334 | F186: -0.6726451386 | G186: 0.4254539923 | H186: 0.7636127382 | I186: -0.4829918027
C187: =C186+Sheet2!B$12 -> 2.608855721 | D187: 0.8085856915 | E187: -0.8750184192 | F187: -0.6965320725 | G187: 0.4106749231 | H187: 0.7537585681 | I187: -0.4444156331
C188: =C187+Sheet2!B$12 -> 2.640099502 | D188: 0.822303718 | E188: -0.8430807363 | F188: -0.7210499493 | G188: 0.3953104797 | H188: 0.7392686045 | I188: -0.4052987272
C189: =C188+Sheet2!B$12 -> 2.671343284 | D189: 0.8368437256 | E189: -0.8078521508 | F189: -0.7460087947 | G189: 0.3791810903 | H189: 0.7201641011 | I189: -0.3660447584
C190: =C189+Sheet2!B$12 -> 2.702587065 | D190: 0.8519789124 | E190: -0.7694701751 | F190: -0.7711898201 | G190: 0.3621247417 | H190: 0.6965049924 | I190: -0.3270552643
C191: =C190+Sheet2!B$12 -> 2.733830846 | D191: 0.8674731928 | E191: -0.7280846302 | F191: -0.7963496636 | G191: 0.344001386 | H191: 0.6683894732 | I191: -0.2887260655
C192: =C191+Sheet2!B$12 -> 2.765074627 | D192: 0.8830848798 | E192: -0.6838570616 | F192: -0.8212252595 | G192: 0.3246967479 | H192: 0.6359532427 | I192: -0.2514437388
C193: =C192+Sheet2!B$12 -> 2.796318408 | D193: 0.8985704552 | E193: -0.6369601081 | F193: -0.8455392245 | G193: 0.3041254391 | H193: 0.5993684221 | I193: -0.2155821744
C194: =C193+Sheet2!B$12 -> 2.827562189 | D194: 0.9136883676 | E194: -0.5875768287 | F194: -0.869005635 | G194: 0.2822333069 | H194: 0.5588421536 | I194: -0.1814992477
C195: =C194+Sheet2!B$12 -> 2.85880597 | D195: =(SIN(Q))^2+(COS(Q))^4 -> 0.928202801 | E195: =SIN(2*Q) -> -0.5358999871 | F195: -0.8913360634 | G195: 0.2589989609 | H195: 0.5146148928 | I195: -0.1495336361
C196: =C195+Sheet2!B$12 -> 2.890049751 | D196: 0.9418873524 | E196: -0.4821313001 | F196: -0.9122457321 | G196: 0.2344344447 | H196: =E196*COS($C196) -> 0.4669584104 | I196: =E196*SIN($C196) -> -0.1200018063
C197: =C196+Sheet2!B$12 -> 2.921293532 | D197: 0.9545285639 | E197: -0.4264806497 | F197: -0.9314596402 | G197: 0.2085850374 | H197: 0.4161735202 | I197: -0.09319520195
C198: =C197+Sheet2!B$12 -> 2.952537313 | D198: 0.965929252 | E198: -0.3691652641 | F198: -0.9487185219 | G198: 0.181528196 | H198: 0.3625875528 | I198: -0.06937765294
C199: =C198+Sheet2!B$12 -> 2.983781095 | D199: 0.9759115834 | E199: -0.3104088695 | F199: -0.9637844938 | G199: 0.1533716668 | H199: 0.3065515977 | I199: -0.04878303169
C200: =C199+Sheet2!B$12 -> 3.015024876 | D200: 0.9843198493 | E200: -0.2504408172 | F200: -0.9764462607 | G200: 0.1242508178 | H200: 0.2484375375 | I200: -0.0316131757
C201: =C200+Sheet2!B$12 -> 3.046268657 | D201: 0.9910228934 | E201: -0.1894951879 | F201: -0.9865237556 | G201: 0.09432526128 | H201: 0.1886349 | I201: -0.01803609506
... 3 more rows

Sheet Sheet3
